bitfinex-derivatives/quotes_ETHF0:USTF0_20250403
["timestamp","ask_amount","ask_price","bid_price","bid_amount"]
[1743692457320,7.33e-06,1760.9,1760.8,4.34396]
[1743692457720,7.33e-06,1760.9,1760.8,49.04266]
[1743692457926,7.33e-06,1760.9,1760.8,50.5016998]
[1743692458728,2.03550733,1761.1,1761.0,1.13603]
[1743692458924,2.03550733,1761.1,1761.0,8.95483]
[1743692459226,2.03550733,1761.1,1761.0,17.9993698]
[1743692459422,2.83861,1762.0,1761.0,17.9993698]
[1743692459423,1.13534,1762.1,1761.0,57.6633398]
[1743692459616,1.4632,1762.1,1761.8,1.1355]
[1743692459821,1.13545,1762.0,1761.9,1.4446]
[1743692460036,2.59857,1762.1,1761.9,2.58003]
[1743692460422,2.59858,1762.1,1761.9,2.58003]
[1743692460729,1.4632,1762.1,1761.8,4.3433]
[1743692461026,1.13539,1762.0,1761.9,1.13545]
[1743692461328,1.4632,1762.1,1761.8,3.2078]
[1743692461517,1.13556,1761.8,1761.6,4.34342]
[1743692461722,2.64058,1761.7,1761.6,3.2078]
[1743692462526,1.505,1761.7,1761.6,4.34344]
[1743692463335,1.1795,1762.0,1761.6,3.2078]
[1743692463522,3.81991,1762.0,1761.8,4.34328]
[1743692463727,2.6845,1762.0,1761.9,1.13545]
[1743692464333,3.8199,1762.0,1761.8,4.34328]
[1743692464625,2.6845,1762.0,1761.8,3.2078]
[1743692464827,2.6845,1762.0,1761.9,1.13545]
[1743692465426,2.6845,1762.0,1761.8,3.2078]
[1743692465631,1.13545,1761.9,1761.8,3.2078]
[1743692465831,1.4235,1761.9,1761.8,4.34332]
[1743692466235,0.1014,1762.2,1762.1,1.13532]
[1743692466535,1.13526,1762.2,1762.0,1.13539]
[1743692466829,1.13532,1762.1,1762.0,3.2078]
[1743692467138,3.2078,1762.2,1761.9,1.13544]
[1743692467324,3.2078,1762.2,1761.8,1.13552]
[1743692467635,1.13542,1762.0,1761.8,1.4916]
[1743692467840,1.13552,1761.8,1761.7,4.34335]
[1743692468136,1.13564,1761.6,1761.5,3.2078]
[1743692468325,1.13571,1761.5,1761.4,0.00852733]
[1743692468525,2.67451,1761.5,1761.4,0.00852733]
[1743692468724,5.17451,1761.5,1761.4,0.00852733]
[1743692468932,1.1359,1761.2,1761.1,0.0474]
[1743692469529,2.6747,1761.2,1761.1,0.0474]
[1743692470930,5.8825,1761.2,1761.1,0.0474]
[1743692471132,2.84003,1761.1,1760.3,4.607]
[1743692471434,1.13624,1760.7,1760.5,1.13633]
[1743692471642,1.13613,1760.9,1760.7,1.13622]
[1743692471938,1.13622,1760.7,1760.6,40.8]
[1743692472944,1.13629,1760.6,1760.5,0.00852733]
[1743692473130,1.13659,1760.2,1760.0,2.57954]
[1743692473330,1.13659,1760.2,1760.0,5.78738]
[1743692473531,4.608,1760.4,1760.3,1.13648]
[1743692473737,1.13631,1760.6,1760.4,1.13637]
[1743692473936,1.13645,1760.4,1760.2,4.34431]
[1743692474436,1.13644,1760.4,1760.3,40.8]
[1743692474636,10.66480733,1760.8,1760.3,41.93648]
[1743692474832,1.13637,1760.5,1760.3,41.93647]
[1743692475040,1.4621,1760.4,1760.3,40.8]
[1743692475237,1.4621,1760.4,1760.3,41.93648]
[1743692475538,4.61652733,1760.8,1760.3,41.93648]
[1743692475539,3.2078,1760.7,1760.3,40.8]
[1743692475836,1.13642,1760.4,1760.3,40.8]
[1743692476737,3.37032,1760.4,1760.3,40.8]
[1743692477040,1.13655,1760.2,1760.1,0.00852733]
[1743692477235,1.13653,1760.3,1760.1,3.21632733]
[1743692477432,1.13643,1760.4,1760.2,41.93653]
[1743692477638,1.13646,1760.4,1760.2,42.3129]
[1743692478031,1.5184,1760.5,1760.2,42.3129]
[1743692478235,1.13648,1760.3,1760.2,42.3129]
[1743692478537,1.13648,1760.3,1760.2,40.8]
[1743692479539,1.5184,1760.5,1760.2,41.93654]
[1743692479540,1.13644,1760.4,1760.2,41.93654]
[1743692479736,0.00852733,1760.8,1760.3,6.04897]
[1743692480036,0.00852733,1760.8,1760.5,3.2078]
[1743692480037,2.64578733,1760.8,1760.5,3.2078]
[1743692480233,1.50962733,1760.8,1760.5,3.2078]
[1743692480436,1.50962733,1760.8,1760.6,2.60015]
[1743692480629,0.00852733,1760.8,1760.7,2.60012]
[1743692481234,0.00852733,1760.8,1760.7,43.40012]
[1743692481436,0.00852733,1760.8,1760.7,45.90012]
[1743692481634,1.5011,1761.2,1760.7,45.90012]
[1743692481835,1.5011,1761.2,1761.1,1.13597]
[1743692482047,1.1797,1761.4,1761.3,1.13584]
[1743692482235,1.1797,1761.4,1761.1,3.2078]
[1743692482435,3.65732,1761.7,1761.2,1.4639]
[1743692482736,1.13577,1761.4,1761.3,40.8]
[1743692483045,1.13577,1761.4,1761.3,40.80852733]
[1743692483341,1.13572,1761.5,1761.3,45.15211733]
[1743692483541,1.13572,1761.5,1761.4,1.5056]
[1743692483740,1.44622733,1761.6,1761.4,1.5056]
[1743692484042,0.1014,1761.7,1761.6,1.13564]
[1743692484344,1.13553,1761.8,1761.6,5.84904]
[1743692484545,1.13548,1761.9,1761.7,2.64116]
[1743692484742,1.13548,1761.9,1761.7,43.44116]
[1743692484940,1.13549,1761.9,1761.7,43.44117]
[1743692485245,1.44622733,1762.0,1761.7,42.3056]
[1743692485441,1.13552,1761.8,1761.7,42.3056]
[1743692485640,1.13552,1761.8,1761.7,40.8]
[1743692485945,2.83879,1761.9,1761.4,6.95976]
[1743692486147,1.4145,1761.8,1761.6,4.34344]
[1743692486340,1.4145,1761.8,1761.6,40.8]
[1743692486542,1.13571,1761.5,1761.4,3.2078]
[1743692487038,1.13577,1761.4,1761.3,0.00852733]
[1743692487240,2.55027,1761.4,1761.3,0.00852733]
[1743692487441,7.15727,1761.4,1761.3,0.00852733]
[1743692487836,7.15727,1761.4,1760.8,1.4596]
[1743692487837,1.13603,1761.0,1760.8,2.59572]
[1743692488037,1.13596,1761.2,1761.0,1.13601]
[1743692488241,1.1359,1761.2,1761.1,1.4596]
[1743692488542,0.8615,1761.6,1761.1,3.2078]
[1743692488841,1.23708,1761.6,1761.4,1.13575]
[1743692489147,0.1014,1761.6,1761.5,1.13571]
[1743692489741,0.1014,1761.6,1761.5,4.34351]
[1743692490242,1.13571,1761.5,1761.4,1.4905]
[1743692490443,1.2371,1761.6,1761.4,2.62625]
[1743692491143,1.23708,1761.6,1761.4,2.62623]
[1743692491349,0.1014,1761.6,1761.5,4.34351]
[1743692491740,0.00852733,1761.7,1761.6,1.13564]
[1743692491943,0.00852733,1761.7,1761.6,1.4672]
[1743692492146,1.14410733,1761.7,1761.6,1.4672]
[1743692492342,1.14410733,1761.7,1761.6,42.2672]
[1743692492652,1.13571,1761.5,1761.4,5.824]
[1743692492836,1.13571,1761.5,1761.4,7.2912]
[1743692493042,1.13583,1761.4,1761.2,4.69512733]
[1743692493342,1.13573,1761.5,1761.3,2.60299]
[1743692493642,1.13573,1761.5,1761.4,1.4672]
[1743692493842,0.00852733,1761.7,1761.4,1.4672]
[1743692494144,0.00852733,1761.7,1761.5,1.13568]
[1743692494352,1.14410733,1761.7,1761.6,42.2672]
[1743692495242,1.14410733,1761.7,1761.6,43.40284]
[1743692495243,0.00852733,1761.7,1761.6,43.40284]
[1743692495444,1.14410733,1761.7,1761.6,42.2672]
[1743692495746,1.13584,1761.3,1761.2,0.00852733]
[1743692496051,1.13584,1761.3,1761.2,40.80852733]
[1743692496546,6.76700733,1761.7,1761.2,40.80852733]
[1743692496749,1.13577,1761.4,1761.3,2.61222]
[1743692496949,0.72022733,1761.7,1761.2,47.56965733]
[1743692497146,1.13564,1761.6,1761.2,47.56965733]
[1743692497351,0.00852733,1761.7,1761.3,2.8396]
[1743692497557,0.00852733,1761.7,1761.6,1.13564]
[1743692497751,1.14410733,1761.7,1761.6,1.13564]
[1743692498052,0.00852733,1761.7,1761.6,1.13564]
[1743692498450,0.00852733,1761.7,1761.6,4.34344]
[1743692499254,2.67e-06,1761.8,1761.7,1.13558]
[1743692499450,1.13352733,1761.9,1761.8,1.13552]
[1743692499750,1.13513,1762.4,1762.3,1.13514]
[1743692500056,2.83743,1762.7,1762.4,1.13511]
[1743692500245,1.13511,1762.5,1762.4,1.13509]
[1743692500546,2.83743,1762.7,1762.4,1.13509]
[1743692500547,1.13505,1762.6,1762.5,1.13504]
[1743692500750,0.00852733,1762.7,1762.6,1.135]
[1743692500950,0.00852733,1762.7,1762.5,9.7276]
[1743692501148,0.00852733,1762.7,1762.5,6.5198]
[1743692501456,0.00852733,1762.7,1762.6,1.135]
[1743692501862,0.00852733,1762.7,1762.6,3.635]
[1743692502353,0.00852733,1762.7,1762.6,9.459]
[1743692502554,0.00852733,1762.7,1762.6,10.1813]
[1743692503448,0.00852733,1762.7,1762.6,10.90074935]
[1743692503952,7.33e-06,1762.7,1762.6,10.90074935]
[1743692504148,6.04322,1763.9,1763.5,1.13441]
[1743692504149,3.2078,1763.9,1763.5,1.13441]
[1743692504348,1.13425,1763.8,1763.6,1.1343]
[1743692504548,1.13438,1763.6,1763.4,8.94723]
[1743692504760,1.13436,1763.6,1763.5,1.13439]
[1743692505062,1.13436,1763.6,1763.4,7.8128]
[1743692505063,1.13442,1763.5,1763.4,7.8128]
[1743692505253,1.13442,1763.5,1763.4,0.00852733]
[1743692505559,1.13432,1763.7,1763.5,1.13442]
[1743692505755,1.13432,1763.7,1763.6,40.8]
[1743692506054,3.68628,1763.8,1763.6,41.93436]
[1743692506243,2.552,1763.8,1763.6,40.8]
[1743692506450,3.2078,1763.7,1763.4,0.00852733]
[1743692506643,2.5545,1763.6,1763.4,0.00852733]
[1743692506853,2.5545,1763.6,1763.4,1.14300733]
[1743692507151,1.13442,1763.5,1763.4,0.00852733]
[1743692507357,1.4645,1763.5,1763.4,0.00852733]
[1743692507557,2.59892,1763.5,1763.4,0.00852733]
[1743692507750,1.13465,1763.2,1762.9,3.2078]
[1743692507951,1.13476,1763.0,1762.8,1.13486]
[1743692508157,1.4645,1762.9,1762.8,1.13486]
[1743692509358,1.13487,1762.8,1762.7,0.00852733]
[1743692509749,2.59937,1762.8,1762.7,0.00852733]
[1743692510259,1.4645,1762.8,1762.7,0.00852733]
[1743692510452,2.59937,1762.8,1762.7,0.00852733]
[1743692512060,1.13481,1762.9,1762.7,1.14344733]
[1743692512357,4.34267,1762.8,1762.7,0.00852733]
[1743692512566,10.40757,1762.8,1762.7,0.00852733]
[1743692512762,12.90757,1762.8,1762.7,0.00852733]
[1743692512960,1.13519,1762.3,1762.2,40.8]
[1743692513165,1.1353,1762.2,1761.8,9.0318]
[1743692513454,6.04554,1762.5,1761.9,1.13541]
[1743692513455,1.13534,1762.1,1761.9,1.13541]
[1743692513659,1.4199,1762.1,1762.0,40.8]
[1743692514058,2.55522,1762.1,1762.0,40.8]
[1743692514368,1.4199,1762.1,1762.0,40.8]
[1743692514655,2.55522,1762.1,1762.0,40.8]
[1743692514862,1.4199,1762.1,1762.0,40.8]
[1743692515258,2.55522,1762.1,1762.0,40.8]
[1743692515560,1.4199,1762.1,1762.0,41.93539]
[1743692515859,1.13532,1762.1,1762.0,40.8]
[1743692517956,1.13558,1761.7,1761.6,3.2078]
[1743692518148,3.2078,1761.9,1761.4,1.4989]
[1743692518349,5.73838,1762.1,1761.8,4.3433]
[1743692518562,3.2078,1762.3,1761.8,1.1355]
[1743692518563,1.4143,1762.0,1761.8,1.1355]
[1743692518759,1.4143,1762.0,1761.9,2.63435]
[1743692518955,1.4143,1762.0,1761.9,1.4989]
[1743692519155,1.13545,1761.9,1761.8,3.2078]
[1743692519457,1.13545,1761.9,1761.8,44.01632733]
[1743692519960,0.00852733,1762.1,1761.8,44.01632733]
[1743692520158,0.00852733,1762.1,1762.0,1.13539]
[1743692520363,0.00852733,1762.1,1762.0,4.34319]
[1743692520560,1.14387733,1762.1,1761.9,6.95945]
[1743692520766,1.5209,1762.0,1761.9,5.824]
[1743692521060,1.5209,1762.0,1761.9,11.66635]
[1743692521260,0.00852733,1762.1,1762.0,1.13539]
[1743692521561,0.00852733,1762.1,1761.9,6.9594]
[1743692521858,0.00852733,1762.1,1761.9,5.824]
[1743692522055,0.00852733,1762.1,1762.0,1.13539]
[1743692522251,0.00852733,1762.1,1762.0,2.60059]
[1743692523352,0.00852733,1762.1,1762.0,5.80839]
[1743692523555,0.00852733,1762.1,1762.0,2.60059]
[1743692523760,0.00852733,1762.1,1761.9,5.824]
[1743692524065,1.13539,1762.0,1761.9,5.824]
[1743692524367,2.60859,1762.0,1761.9,5.824]
[1743692524564,2.60859,1762.0,1761.9,6.95945]
[1743692524763,1.4732,1762.0,1761.9,6.95945]
[1743692524968,1.4732,1762.0,1761.9,8.42465]
[1743692525171,0.00852733,1762.1,1762.0,1.13539]
[1743692525370,1.13539,1762.0,1761.9,6.9594]
[1743692525561,1.5213,1762.0,1761.9,6.9594]
[1743692525762,1.5213,1762.0,1761.9,8.4537]
[1743692526067,0.00852733,1762.1,1762.0,1.13539]
[1743692526263,0.00852733,1762.1,1762.0,11.66149]
[1743692526462,2.5627,1763.1,1763.0,1.13474]
[1743692526763,1.13474,1763.0,1762.9,1.13475]
[1743692526959,1.13493,1762.8,1762.6,4.34275]
[1743692527168,1.5213,1762.7,1762.6,5.83705]
[1743692527673,1.5213,1762.7,1762.6,46.63705]
[1743692527868,0.00852733,1762.8,1762.7,1.13494]
[1743692528079,0.00852733,1762.8,1762.6,44.0078]
[1743692528371,1.135,1762.6,1762.5,0.00852733]
[1743692528775,1.4198,1762.6,1762.5,40.80852733]
[1743692528969,2.5548,1762.6,1762.5,40.80852733]
[1743692529272,2.5548,1762.6,1762.5,0.00852733]
[1743692529669,6.5259,1762.6,1762.5,0.00852733]
[1743692530370,2.83785,1762.4,1761.9,5.824]
[1743692530579,1.13532,1762.1,1761.9,1.13542]
[1743692530875,1.4198,1762.0,1761.9,2.60522]
[1743692531266,1.1353,1762.2,1761.9,1.4698]
[1743692531472,1.13539,1762.0,1761.9,1.4698]
[1743692531681,1.452,1762.2,1762.1,1.13532]
[1743692532369,1.452,1762.2,1762.1,2.62022]
[1743692532566,4.603,1762.5,1762.1,1.4849]
[1743692532773,1.13523,1762.3,1762.2,1.4849]
[1743692532968,1.13532,1762.1,1762.0,3.2078]
[1743692533175,1.13545,1761.9,1761.8,0.00852733]
[1743692533375,1.452,1762.0,1761.9,1.13545]
[1743692533575,1.13545,1761.9,1761.8,1.49342733]
[1743692533882,1.13545,1761.9,1761.8,0.00852733]
[1743692534683,2.52825,1761.9,1761.8,0.00852733]
[1743692535197,2.52825,1761.9,1761.8,1.14404733]
[1743692535494,2.52825,1761.9,1761.8,0.00852733]
[1743692535991,1.3928,1761.9,1761.8,0.00852733]
[1743692536187,1.1354,1762.0,1761.9,1.13542]
[1743692536388,1.13539,1762.0,1761.9,1.13541]
[1743692536788,1.13545,1761.9,1761.8,1.40212733]
[1743692536992,1.13545,1761.9,1761.8,2.53764733]
[1743692537192,1.13545,1761.9,1761.8,1.40212733]
[1743692537394,1.13545,1761.9,1761.8,0.00852733]
[1743692537589,1.13545,1761.9,1761.8,1.14404733]
[1743692537795,1.3928,1762.1,1761.8,0.00852733]
[1743692538187,1.13539,1762.0,1761.9,41.93545]
[1743692538388,1.13539,1762.0,1761.9,40.8]
[1743692539100,1.3928,1762.1,1761.9,40.8]
[1743692539395,1.3928,1762.1,1762.0,4.34319]
[1743692539697,5.68309733,1762.8,1762.5,1.13501]
[1743692539698,0.00852733,1762.8,1762.5,1.13501]
[1743692539891,1.13513,1762.4,1762.2,3.2078]
[1743692540096,1.13513,1762.4,1762.3,42.2589]
[1743692540295,1.13513,1762.4,1762.3,42.98255437]
[1743692540594,1.13513,1762.4,1762.3,41.52365437]
[1743692540790,1.13513,1762.4,1762.3,40.8]
[1743692541191,1.13532,1762.1,1762.0,1.13536]
[1743692541695,9.3041,1762.3,1762.0,1.13538]
[1743692541895,9.3041,1762.3,1761.9,1.4172]
[1743692541896,6.0963,1762.3,1761.9,1.4172]
[1743692542096,1.13545,1761.9,1761.8,45.15179733]
[1743692542296,1.13545,1761.9,1761.8,46.56899733]
[1743692542696,1.13539,1762.0,1761.8,45.43352733]
[1743692542999,1.4933,1762.1,1761.8,46.56899733]
[1743692543193,1.13545,1761.9,1761.8,45.43352733]
[1743692543389,1.13543,1762.0,1761.8,46.15781808]
[1743692543590,1.4933,1762.1,1761.8,47.29330808]
[1743692543797,1.13545,1761.9,1761.8,46.56901733]
[1743692544191,1.4933,1762.1,1761.8,47.29327387]
[1743692544393,1.13545,1761.9,1761.8,44.01632733]
[1743692544588,1.13545,1761.9,1761.8,3.21632733]
[1743692545093,3.2078,1762.5,1761.8,4.35184733]
[1743692545292,1.13526,1762.2,1762.1,4.3431]
[1743692545492,1.13526,1762.2,1762.0,1.13534]
[1743692545699,1.13529,1762.2,1762.1,1.13532]
[1743692546001,4.26763,1762.4,1762.0,1.13533]
[1743692546002,1.13532,1762.1,1762.0,1.13533]
[1743692546202,4.26763,1762.4,1762.0,1.13533]
[1743692546395,1.13532,1762.1,1761.9,5.81481]
[1743692546695,4.26763,1762.4,1761.9,4.6794]
[1743692546902,2.60034,1762.6,1762.4,1.13508]
[1743692547101,1.4183,1762.6,1762.5,1.13506]
[1743692547398,1.13496,1762.7,1762.4,6.04558]
[1743692547399,1.13495,1762.7,1762.4,6.04558]
[1743692547599,1.42682733,1762.8,1762.7,1.13494]
[1743692547806,0.00852733,1762.8,1762.7,1.13494]
[1743692548001,1.39272534,1763.0,1762.9,1.13481]
[1743692548301,1.1315,1763.3,1763.2,1.13461]
[1743692548501,1.13452,1763.4,1763.2,1.13461]
[1743692548805,1.13455,1763.3,1763.2,40.8]
[1743692549908,1.14303733,1763.4,1763.1,3.21632733]
[1743692550103,0.00852733,1763.4,1763.2,1.13456]
[1743692550309,1.14303733,1763.4,1763.2,41.93456]
[1743692550601,0.00852733,1763.4,1763.3,1.13455]
[1743692550803,0.00852733,1763.4,1763.3,4.34235]
[1743692551512,1.13455,1763.3,1763.2,40.8]
[1743692551701,2.59065,1763.3,1763.1,1.14316733]
[1743692552196,0.00852733,1763.4,1763.1,3.21632733]
[1743692552407,0.00852733,1763.4,1763.3,1.13455]
[1743692552607,0.00852733,1763.4,1763.1,3.21632733]
[1743692552810,1.43582733,1763.4,1763.3,1.13455]
[1743692553108,0.00852733,1763.4,1763.3,4.34235]
[1743692553413,0.00852733,1763.4,1763.3,12.66635]
[1743692554208,0.00852733,1763.4,1763.3,13.38640248]
[1743692555305,0.00852733,1763.4,1763.3,17.98740248]
[1743692555812,1.1301,1763.6,1763.5,1.13442]
[1743692556006,1.1301,1763.6,1763.5,10.16622]
[1743692556207,1.1301,1763.6,1763.5,12.66622]
[1743692556716,1.1301,1763.6,1763.5,10.88627248]
[1743692557212,2.26446,1763.6,1763.5,3.2078]
[1743692557409,1.13442,1763.5,1763.4,0.72005248]
[1743692557610,1.13455,1763.3,1763.2,3.2078]
[1743692558002,1.13452,1763.4,1763.3,1.13454]
[1743692558202,1.5229,1763.5,1763.1,0.00852733]
[1743692558413,1.13461,1763.2,1763.1,0.00852733]
[1743692558713,4.34245,1763.2,1762.7,2.83734]
[1743692558905,1.4798,1763.3,1762.8,47.3376]
[1743692559209,2.61439,1763.3,1763.2,1.13461]
[1743692559409,1.4798,1763.3,1762.9,6.04482]
[1743692559614,2.61438,1763.3,1763.2,1.13461]
[1743692559816,1.13469,1763.1,1763.0,1.13469]
[1743692560110,1.13466,1763.2,1763.1,1.13468]
[1743692560313,1.13469,1763.1,1763.0,1.1347]
[1743692560614,1.4798,1763.3,1763.2,1.13461]
[1743692561016,2.61435,1763.3,1763.2,1.13461]
[1743692561310,1.4798,1763.3,1763.0,1.13474]
[1743692561811,1.13474,1763.0,1762.9,0.00852733]
[1743692562115,7.8078,1763.1,1762.9,0.00852733]
[1743692562318,1.5082,1763.1,1763.0,1.13474]
[1743692562710,2.64288,1763.1,1762.9,0.00852733]
[1743692563018,4.34254,1763.0,1762.9,0.00852733]
[1743692563315,2.64294,1763.0,1762.9,0.00852733]
[1743692563717,5.85074,1763.0,1762.9,0.00852733]
[1743692564519,1.13513,1762.4,1762.3,5.824]
[1743692564714,1.13513,1762.4,1762.3,1.13519]
[1743692564915,1.5165,1762.6,1762.4,1.13509]
[1743692565120,1.13509,1762.5,1762.3,40.8]
[1743692565318,1.5165,1762.6,1762.3,40.8]
[1743692565319,2.65163,1762.4,1762.3,40.8]
[1743692565622,0.00852733,1762.6,1762.5,1.13506]
[1743692566015,0.00852733,1762.6,1762.5,4.34286]
[1743692566207,1.5165,1763.0,1762.9,1.13481]
[1743692566414,3.2078,1763.1,1763.0,1.13474]
[1743692566907,1.13468,1763.1,1763.0,40.8]
[1743692567122,1.13468,1763.1,1762.8,7.2653]
[1743692567123,1.13481,1762.9,1762.8,5.824]
[1743692567318,1.13481,1762.9,1762.4,4.31312]
[1743692567319,10.64492,1762.9,1762.3,1.13514]
[1743692567511,1.13509,1762.5,1762.4,1.13513]
[1743692567822,6.04515,1762.7,1762.3,1.13514]
[1743692568012,1.4576,1762.4,1762.3,1.13514]
[1743692568318,5.80053,1762.4,1762.3,40.8]
[1743692568506,1.13519,1762.3,1762.2,0.00852733]
[1743692568710,2.59279,1762.3,1762.2,0.00852733]
[1743692569113,2.59279,1762.3,1762.2,40.80852733]
[1743692569308,2.59279,1762.3,1762.2,41.94378733]
[1743692569506,1.4576,1762.3,1762.2,40.80852733]
[1743692569708,2.59279,1762.3,1762.2,40.80852733]
[1743692571416,2.59279,1762.3,1762.2,0.00852733]
[1743692571913,5.09279,1762.3,1762.2,0.00852733]
[1743692572121,3.30479,1762.3,1762.2,0.00852733]
[1743692572316,2.83842,1762.1,1761.6,5.824]
[1743692572517,3.39441,1762.0,1761.8,1.13549]
[1743692572715,3.39439,1762.0,1761.9,40.8]
[1743692573115,3.39439,1762.0,1761.6,1.13561]
[1743692573116,1.13558,1761.7,1761.6,1.13561]
[1743692573517,0.00852733,1761.8,1761.5,2.56650733]
[1743692573825,2.53613,1761.7,1761.5,1.43082733]
[1743692574225,2.53613,1761.7,1761.5,2.56649733]
[1743692574618,1.4005,1761.7,1761.6,1.13564]
[1743692574812,0.00852733,1761.8,1761.7,1.13558]
[1743692575021,0.00852733,1761.8,1761.7,2.67688]
[1743692575725,0.00852733,1761.8,1761.7,9.77688]
[1743692576517,0.00852733,1761.8,1761.7,15.60088]
[1743692576915,1.14404733,1761.8,1761.7,15.60088]
[1743692577124,1.14404733,1761.8,1761.7,5.824]
[1743692577521,2.59034733,1761.8,1761.7,5.824]
[1743692578227,1.13558,1761.7,1761.6,40.8]
[1743692578423,5.78968,1761.7,1761.6,40.8]
[1743692579125,8.28968,1761.7,1761.6,40.8]
[1743692579525,1.13564,1761.6,1761.5,0.00852733]
[1743692579720,2.56944,1761.6,1761.5,0.00852733]
[1743692581020,1.4338,1761.6,1761.5,1.14423733]
[1743692581827,2.56944,1761.6,1761.5,0.00852733]
[1743692582225,5.06944,1761.6,1761.5,0.00852733]
[1743692582426,1.13577,1761.4,1761.3,40.8]
[1743692582731,1.13603,1761.0,1760.9,1.4492]
[1743692583122,1.13603,1761.1,1760.9,43.3853]
[1743692583431,2.53093,1761.0,1760.9,40.8]
[1743692583627,5.73873,1761.0,1760.9,40.8]
[1743692583832,12.83973,1761.0,1760.9,40.8]
[1743692584023,1.1361,1760.9,1760.8,0.00852733]
[1743692584223,2.531,1760.9,1760.8,0.00852733]
[1743692584625,5.031,1760.9,1760.8,0.00852733]
[1743692585727,1.13633,1760.6,1760.2,7.2986]
[1743692585922,1.3915,1760.5,1760.3,2.60787]
[1743692586128,1.3915,1760.5,1760.3,1.4714]
[1743692586824,1.13642,1760.4,1760.3,1.4714]
[1743692587125,2.52791,1760.5,1760.3,2.60788]
[1743692587320,3.2078,1760.4,1760.3,1.4714]
[1743692587526,3.21632733,1760.6,1760.3,1.4714]
[1743692587729,1.3915,1760.5,1760.3,1.4714]
[1743692588123,2.52785,1760.5,1760.4,40.8]
[1743692588527,1.3915,1760.5,1760.4,40.8]
[1743692588726,0.00852733,1760.6,1760.5,1.13635]
[1743692588923,0.00852733,1760.6,1760.5,5.80885]
[1743692589325,0.00852733,1760.6,1760.5,43.40105]
[1743692590531,1.42692733,1760.6,1760.5,43.40105]
[1743692590928,0.00852733,1760.6,1760.5,49.10885]
[1743692591534,0.00852733,1760.6,1760.5,45.90105]
[1743692591830,0.00852733,1760.6,1760.5,43.40105]
[1743692592130,0.00852733,1760.6,1760.5,46.60885]
[1743692592426,0.00852733,1760.6,1760.5,49.10885]
[1743692592631,5.4435,1761.2,1760.5,53.65426]
[1743692592846,4.602,1761.4,1761.2,1.13589]
[1743692593031,1.1359,1761.3,1761.2,1.13589]
[1743692593334,1.13597,1761.2,1761.0,1.5099]
[1743692593527,1.13584,1761.3,1761.2,1.13585]
[1743692593732,1.14436733,1761.3,1761.2,1.13585]
[1743692593930,1.13597,1761.1,1761.0,1.5099]
[1743692594327,1.13603,1761.0,1760.9,7.32942733]
[1743692594531,2.65603,1761.0,1760.9,5.83252733]
[1743692594924,1.13626,1760.7,1760.4,7.3209]
[1743692595123,6.839,1761.0,1760.5,1.4954]
[1743692595336,1.396,1760.9,1760.8,1.13616]
[1743692595631,3.2078,1761.1,1761.0,1.13603]
[1743692595825,0.72682733,1761.3,1761.0,3.2078]
[1743692595826,1.14441733,1761.3,1761.0,3.2078]
[1743692596031,1.14441733,1761.3,1761.2,1.1359]
[1743692596231,1.14441733,1761.3,1761.1,1.4954]
[1743692596438,1.1359,1761.2,1761.1,2.63134]
[1743692596935,1.14438733,1761.3,1761.2,1.1359]
[1743692597132,1.1359,1761.2,1761.1,2.63133]
[1743692597429,0.00852733,1761.3,1761.2,1.1359]
[1743692597633,0.00852733,1761.3,1761.2,2.6313]
[1743692597831,1.14436733,1761.3,1761.2,2.6313]
[1743692598427,0.00852733,1761.3,1761.2,2.6313]
[1743692599033,4.35216733,1761.3,1761.2,2.6313]
[1743692599336,0.00852733,1761.3,1761.2,2.6313]
[1743692600440,0.00852733,1761.3,1761.2,5.8391]
[1743692600843,4.35216733,1761.3,1761.2,2.21653949]
[1743692601032,1.14436733,1761.3,1761.2,2.21653949]
[1743692601234,0.00852733,1761.3,1761.2,3.35243949]
[1743692601437,1.14436733,1761.3,1761.2,2.6313]
[1743692601942,0.00852733,1761.3,1761.2,2.6313]
[1743692602134,1.14436733,1761.3,1761.2,2.6313]
[1743692602438,1.14436733,1761.3,1761.2,2.21736817]
[1743692602740,1.14436733,1761.3,1761.2,3.35326817]
[1743692603138,1.14436733,1761.3,1761.2,0.72196817]
[1743692603537,2.58546733,1761.3,1761.2,0.72196817]
[1743692603743,1.44962733,1761.3,1761.2,1.1359]
[1743692603946,2.58546733,1761.3,1761.2,2.6372]
[1743692604243,2.58546733,1761.3,1761.1,6.95991]
[1743692604444,2.58546733,1761.3,1761.1,8.46121]
[1743692604636,2.58546733,1761.3,1761.2,1.1359]
[1743692605040,1.1359,1761.2,1761.1,5.824]
[1743692605235,1.1361,1760.9,1760.6,1.5305]
[1743692605431,1.5181,1760.8,1760.6,0.768]
[1743692605636,2.65429,1760.8,1760.7,0.72283453]
[1743692606039,2.65429,1760.8,1760.7,1.85905453]
[1743692606354,1.5181,1760.8,1760.7,1.13622]
[1743692606545,2.6543,1760.8,1760.7,1.13622]
[1743692606735,2.6543,1760.8,1760.7,1.5013]
[1743692607135,2.6543,1760.8,1760.7,2.22456709]
[1743692607342,1.5181,1760.8,1760.7,2.22456709]
[1743692607539,1.13,1760.9,1760.7,2.22456709]
[1743692607847,1.13,1760.9,1760.8,1.13616]
[1743692608038,1.13,1760.9,1760.7,2.22456709]
[1743692608039,2.26615,1760.9,1760.7,2.97646709]
[1743692608234,6.92255,1760.9,1760.8,0.72326709]
[1743692608542,6.92255,1760.9,1760.8,41.52326709]
[1743692609039,3.71475,1760.9,1760.8,41.52326709]
[1743692609242,3.7147,1760.9,1760.8,40.8]
[1743692609635,2.5786,1760.9,1760.8,41.93616]
[1743692609835,3.7147,1760.9,1760.8,40.8]
[1743692610539,2.5786,1760.9,1760.8,41.93616]